[Event "Israel-ch Semi-final 2022"]
[Site "Ramat Gan"]
[Date "2022.06.13"]
[Round "6.4"]
[White "Kochavi, Ori"]
[Black "Chernomordik, Pavel"]
[Result "1-0"]
[ECO "B06"]
[WhiteElo "2365"]
[BlackElo "2178"]
[Annotator "TA"]
[PlyCount "79"]
[EventDate "2022.05.09"]
[EventType "swiss"]
[EventCountry "ISR"]
[SourceTitle "playchess.com"]
[Source "ChessBase"]
[SourceQuality "1"]
[TimeControl "40/5400+30:1800+30"]

{[%evp 10,79,49,31,45,41,64,50,54,38,66,58,88,35,75,29,29,13,29,29,29,29,29,29,29,0,0,0,12,0,0,0,0,0,6,6,13,15,83,32,51,34,29,36,54,31,95,101,93,97,85,25,46,29,116,117,123,106,133,119,140,133,143,140,161,115,113,88,79,79,162,166]} 1. e4 {[%emt 0:00:03]} g6 {[%emt 0:00:00]} 2. d4 {[%emt 0:00:08]} d6 {[%emt 0:00:27]} 3. Nc3 {[%emt 0:00:10]} Bg7 {[%emt 0:00:21]} 4. Be3 {[%emt 0:00:04]} a6 {[%emt 0:00:37]} 5. Qd2 {[%emt 0:00:24]} b5 {[%emt 0:00:24]} 6. f3 {[%emt 0:00:03]} Bb7 {[%emt 0:00:21] B06: Modern Defence.} 7. h4 {[%emt 0:00:10]} h6 {[%emt 0:00:16]} 8. Nh3 {[%emt 0:00:12][%cal Oh4h5]} Nd7 {[%emt 0:01:29] White is slightly better.} 9. O-O-O {[%emt 0:00:48][%cal Oh4h5]} e6 {[%emt 0:09:51]} 10. g4 {[%emt 0:09:17]} Nb6 {[%emt 0:02:56]} 11. a3 {[%emt 0:08:29]} (11. b3 $16) 11... Ne7 {[%emt 0:03:26] [#]} 12. g5 $146 {[%emt 0:12:24]} ({White should try} 12. Nf4 $16) ({Predecessor:} 12. h5 g5 13. f4 gxf4 14. Bxf4 Qd7 15. g5 hxg5 16. Nxg5 Nc6 17. d5 Nd4 18. Be3 {1-0 (24) Preotu,R (2473)-Chernomordik,P (2182) Chess.com INT 2021}) 12... h5 $1 $11 {[%emt 0:04:58]} 13. Nf4 {[%emt 0:12:36]} c6 {[%emt 0:08:43] Inhibits d5.} 14. Qf2 {[%emt 0:02:46][%cal Od4d5]} Nc4 {[%emt 0:16:07]} 15. Bxc4 {[%emt 0:00:49]} bxc4 {[%emt 0:00:01]} 16. Qf1 {[%emt 0:05:16]} a5 {[%emt 0:05:06]} 17. Qxc4 {[%emt 0:01:24]} Ba6 {[%emt 0:00:01]} 18. Qa2 $36 {[%emt 0:02:28][%mdl 2048] Black is under pressure.} O-O {[%emt 0:00:28]} 19. Nd3 {[%emt 0:04:18]} Qb6 {[%emt 0:01:37]} 20. Na4 {[%emt 0:02:30]} Qa7 {[%emt 0:02:44]} 21. Rhe1 {[%emt 0:10:25]} Bxd4 {[%emt 0:06:05]} 22. Bxd4 {[%emt 0:01:19]} Qxd4 {[%emt 0:00:04]} 23. Ndc5 {[%emt 0:00:15] Pair of Knights!} Qe5 {[%emt 0:04:04]} (23... Qf2 $1 $11 24. Nxa6 Rxa6) 24. Nxa6 {[%emt 0:02:11]} (24. Nd7 $16 Qf4+ 25. Kb1) 24... Rxa6 $14 {[%emt 0:07:11]} 25. Qc4 {[%emt 0:00:03]} Qf4+ {[%emt 0:03:18]} 26. Kb1 {[%emt 0:00:05]} Raa8 {[%emt 0:00:18]} 27. Qd4 {[%emt 0:04:43]} (27. Nb6 Rad8 $11) 27... Rfd8 {[%emt 0:02:34]} (27... Qxh4 28. Qxd6 Qxg5 29. Rg1 $16) (27... Nc8 $14) 28. Qf6 $16 {[%emt 0:00:10]} Qxf6 {[%emt 0:01:14]} 29. gxf6 {[%emt 0:00:03]} Nc8 {[%emt 0:00:01]} 30. c4 {[%emt 0:01:02]} ({White should play} 30. Re3 $16) 30... Rb8 $11 {[%emt 0:08:55]} 31. Rd3 {[%emt 0:00:18]} Re8 {[%emt 0:02:52]} (31... d5 $11 {remains equal.}) 32. c5 $16 {[%emt 0:05:08]} dxc5 {[%emt 0:00:14]} 33. Nxc5 {[%emt 0:00:11]} Nb6 {[%emt 0:02:19]} 34. Rc1 {[%emt 0:01:01] Inhibits Nc4. White is much more active.} Red8 {[%emt 0:03:55]} 35. Rxd8+ {[%emt 0:02:50]} Rxd8 {[%emt 0:00:03]} 36. Nb7 {[%emt 0:00:05][%csl LRa5,LRc6,LRd8]} Rd3 {[%emt 0:00:39]} 37. Rxc6 {[%emt 0:01:14]} ({Resist} 37. Nxa5 Rxf3 38. Rxc6 (38. Nxc6 Rxf6 39. b3 Rf4 $14) 38... Nd7 $16) (37. f4 $1 $18) 37... Nd7 {[%emt 0:01:55]} 38. Rc8+ {[%emt 0:04:56]} Kh7 {[%emt 0:00:41] [#]} 39. Nd8 $1 {[%emt 0:00:05]} Nb6 {[%emt 0:02:49] [#]} (39... g5 $16) 40. Rb8 $1 {[%emt 0:00:07] Weighted Error Value: White=0.15 (very precise) /Black=0.21 (precise)} ({Don't play} 40. Rc6 $6 Rxd8 41. Rxb6 g5 $14) 1-0

[Event "Israel-ch Semi-final 2022"]
[Site "Ramat Gan"]
[Date "2022.06.13"]
[Round "6.5"]
[White "Levin, Guy"]
[Black "Yaniv, Ori"]
[Result "1-0"]
[ECO "B40"]
[WhiteElo "2354"]
[BlackElo "2143"]
[Annotator "TA"]
[PlyCount "68"]
[EventDate "2022.05.09"]
[EventType "swiss"]
[EventCountry "ISR"]
[SourceTitle "playchess.com"]
[Source "ChessBase"]
[SourceQuality "1"]
[TimeControl "40/5400+30:1800+30"]

{[%evp 9,68,0,24,23,24,19,30,0,39,39,35,41,43,52,41,35,84,58,72,73,114,120,118,106,125,114,105,100,102,108,109,107,90,63,76,75,75,79,79,30,27,19,65,69,72,71,202,185,185,193,200,159,159,158,309,300,300,252,2175,1885,2669]} 1. e4 {[%emt 0:00:03]} c5 {[%emt 0:00:58]} 2. Nf3 {[%emt 0:00:06]} e6 {[%emt 0:01:35]} 3. g3 {[%emt 0:00:09]} Nc6 {[%emt 0:00:34]} 4. Bg2 {[%emt 0:00:07]} Nf6 {[%emt 0:01:30]} 5. Qe2 {[%emt 0:00:10]} d5 {[%emt 0:00:55]} 6. exd5 {[%emt 0:00:07] B40: Sicilian: 2...e6, Unusual lines.} Nxd5 {[%emt 0:00:22]} 7. O-O {[%emt 0:00:06]} Be7 {[%emt 0:00:29]} 8. Rd1 {[%emt 0:00:06] White has an edge.} O-O {[%emt 0:08:59][%cal Oe6e5]} 9. d4 {[%emt 0:00:12] Prevents e5.} cxd4 {[%emt 0:00:56]} 10. Nxd4 {[%emt 0:00:05]} Nxd4 {[%emt 1:19:12]} 11. Rxd4 {[%emt 0:00:05]} Bf6 {[%emt 0:00:00]} 12. Rd1 {[%emt 0:00:04] Strongly threatening c4.} Qb6 {[%emt 0:00:00]} (12... b5 $14) 13. c4 $16 {[%emt 0:03:21]} Ne7 {[%emt 0:00:00]} 14. Nc3 $36 {[%emt 0:01:02][%mdl 2048] White is in control.} Nc6 {[%emt 0:00:00]} 15. Be3 {[%emt 0:06:56]} Nd4 {[%emt 0:00:00]} 16. Qd2 {[%emt 0:14:05]} Rd8 {[%emt 0:00:00] [#]} 17. Nd5 $146 {[%emt 0:06:49][%mdl 512]} ({Predecessor:} 17. Ne4 e5 18. c5 Qe6 19. Nxf6+ gxf6 20. Qa5 Qe7 21. Bxd4 exd4 22. Re1 Be6 23. Rad1 {0-1 (72) Sychev,K (2555)-Florescu,C (2289) Chess.com INT 2021}) 17... exd5 {[%emt 0:00:00]} 18. Bxd4 {[%emt 0:00:03]} dxc4 {[%emt 0:00:00]} 19. Bxb6 {[%emt 0:00:02][%mdl 64] Qxd8+ would kill now. Discovered Attack} Rxd2 {[%emt 0:00:00]} 20. Rxd2 {[%emt 0:00:08]} axb6 {[%emt 0:00:00]} 21. Rd5 {[%emt 0:37:14]} g6 {[%emt 0:00:00]} 22. Rb5 {[%emt 0:02:31]} Be6 {[%emt 0:00:00]} 23. Bf3 {[%emt 0:13:19]} Bd4 {[%emt 0:00:00]} 24. Rd1 {[%emt 0:01:01]} (24. Bxb7 $16 Ra7 25. Rd1) 24... Bc5 $1 $11 {[%emt 0:00:00]} 25. Bxb7 {[%emt 0:02:22]} Ra7 {[%emt 0:00:00]} (25... Rxa2 $11 {might be stronger.} 26. Bd5 Bxd5 27. Rxd5 Ra1+ 28. Kg2 Rb1) 26. Bd5 $14 {[%emt 0:05:04]} Rd7 {[%emt 0:00:00]} 27. Bf3 {[%emt 0:00:15]} (27. b4 {seems wilder.} Bf8 28. Bf3 c3 29. Rxb6 c2 30. Rc1) 27... Rxd1+ {[%emt 0:00:00] This costs Black the game.} (27... Ra7 $16 {was worth a try.}) 28. Bxd1 $18 {[%emt 0:00:01]} Bd7 {[%emt 0:00:00] [#]} 29. Rxc5 {[%emt 0:00:05][%mdl 512]} bxc5 {[%emt 0:00:00] KB-KB} 30. Kf1 {[%emt 0:01:10]} Kf8 {[%emt 0:00:00]} 31. Ke2 {[%emt 0:00:15] Hoping for Kd2.} Ke7 $2 {[%emt 0:00:00]} (31... c3 $16 32. bxc3 Ke7) 32. Kd2 {[%emt 0:00:07]} Kd6 {[%emt 0:00:00]} 33. Kc3 {[%emt 0:00:07]} Kc6 $2 {[%emt 0:00:00]} (33... Kc7 34. Kxc4 Kb6) 34. Ba4+ {[%emt 0:00:07]} Kd5 {[%emt 0:12:00] Weighted Error Value: White=0.05 (flawless) /Black=0.21 (precise)} 1-0

[Event "Israel-ch Semi-final 2022"]
[Site "Ramat Gan"]
[Date "2022.06.13"]
[Round "6.6"]
[White "Rozen, Guy"]
[Black "Solomon, Asif"]
[Result "1/2-1/2"]
[ECO "D37"]
[WhiteElo "1967"]
[BlackElo "2288"]
[Annotator "TA"]
[PlyCount "146"]
[EventDate "2022.05.09"]
[EventType "swiss"]
[EventCountry "ISR"]
[SourceTitle "playchess.com"]
[Source "ChessBase"]
[SourceQuality "1"]
[TimeControl "40/5400+30:1800+30"]

{[%evp 9,146,32,16,24,27,32,34,34,36,0,8,2,27,-35,-22,-41,-37,-37,-34,-20,0,0,39,47,60,52,103,97,110,100,101,105,106,99,100,56,55,55,61,56,56,66,52,57,116,112,102,111,137,106,206,202,207,166,206,145,145,137,119,86,204,206,207,135,135,77,215,210,186,196,214,233,194,189,253,242,243,234,236,220,226,221,272,252,343,328,322,327,391,381,362,288,328,318,295,181,184,153,133,151,134,148,157,157,143,135,711,700,644,605,558,526,552,549,996,849,1486,1729,1260,976,2969,1380,29963,29964,29969,29971,29970,584,29972,0,0,0,0,0,0,0,0,0,0]} 1. d4 {[%emt 0:00:11]} d5 {[%emt 0:00:20]} 2. c4 {[%emt 0:00:12]} e6 {[%emt 0:00:14]} 3. Nc3 {[%emt 0:00:54]} a6 {[%emt 0:01:07]} 4. cxd5 {[%emt 0:02:07]} exd5 {[%emt 0:00:08]} 5. Nf3 {[%emt 0:00:35]} Nf6 {[%emt 0:02:40]} 6. Bg5 {[%emt 0:00:14] D37: Queen's Gambit Declined: 5 Bf4.} Be6 {[%emt 0:00:05]} 7. e3 {[%emt 0:02:32]} Nbd7 {[%emt 0:00:52]} 8. Bd3 {[%emt 0:01:22] White is slightly better.} Bd6 {[%emt 0:00:08]} 9. Rc1 {[%emt 0:01:28]} c6 {[%emt 0:07:12]} 10. O-O {[%emt 0:19:09]} Qc7 {[%emt 0:04:09]} 11. e4 {[%emt 0:11:53]} (11. Qd2 $11) 11... dxe4 $15 {[%emt 0:01:33]} 12. Nxe4 {[%emt 0:04:25] [#]} Nxe4 $146 {[%emt 0:00:36]} ({Predecessor:} 12... Nd5 13. Nxd6+ Qxd6 14. Re1 h6 15. Bd2 Nf4 16. Bf5 O-O-O 17. Bxf4 Qxf4 18. Bxe6 fxe6 19. Rxe6 {½-½ (42) Scarella,E (2367)-Fiori,H (2102) Mar del Plata 2016}) 13. Bxe4 {[%emt 0:00:08]} h6 {[%emt 0:01:39]} 14. Bh4 {[%emt 0:02:07]} Nb6 {[%emt 0:07:53] Inhibits d5.} 15. Ne5 {[%emt 0:18:22]} g5 {[%emt 0:13:57]} 16. Bg3 {[%emt 0:00:50][%cal Re4c6] Bxc6+! is the strong threat.} Nd5 {[%emt 0:00:17]} 17. Qf3 {[%emt 0:07:51] aiming for Bxd5.} O-O-O {[%emt 0:17:35]} (17... Rf8 $14) 18. Bxd5 $16 {[%emt 0:00:28]} Bxd5 {[%emt 0:00:10] [#]} 19. Qxd5 {[%emt 0:00:03][%mdl 512]} cxd5 {[%emt 0:00:37]} 20. Nxf7 {[%emt 0:00:02] White is more active.} (20. Rxc7+ {keeps more tension.} Bxc7 21. Nxf7 Rhf8 22. Nxd8 Kxd8 23. Rc1) 20... Bxg3 {[%emt 0:05:37]} 21. hxg3 {[%emt 0:00:09]} Rhe8 {[%emt 0:02:30]} 22. Nxd8 {[%emt 0:01:26]} Kxd8 {[%emt 0:07:46]} 23. Rxc7 {[%emt 0:00:02]} Kxc7 {[%emt 0:00:07][%mdl 4096] Endgame KR-KR} 24. Rc1+ {[%emt 0:00:01]} Kd6 {[%emt 0:05:04]} 25. Kf1 {[%emt 0:01:31] Against Re2} Re4 {[%emt 0:05:04]} 26. Rd1 {[%emt 0:00:02]} b5 {[%emt 0:02:54]} (26... h5 $14) 27. f3 {[%emt 0:00:26]} Re8 {[%emt 0:00:44]} 28. Rc1 {[%emt 0:01:10]} b4 {[%emt 0:02:55]} 29. Kf2 {[%emt 0:00:52]} Re7 {[%emt 0:02:56]} (29... h5 $16 30. Rc5 Rh8) 30. g4 $18 {[%emt 0:00:24]} Re8 {[%emt 0:00:24]} 31. g3 {[%emt 0:05:14]} Rf8 {[%emt 0:00:07]} 32. Ke3 {[%emt 0:06:08]} Re8+ {[%emt 0:00:04]} 33. Kd3 {[%emt 0:00:07]} Rf8 {[%emt 0:00:02]} 34. Rf1 {[%emt 0:00:19]} Rg8 {[%emt 0:00:28]} (34... a5 $16 {is a better defense.}) 35. Rh1 {[%emt 0:04:31]} Rg6 {[%emt 0:00:13]} 36. Re1 {[%emt 0:03:38]} Rf6 {[%emt 0:00:14]} 37. Rf1 {[%emt 0:02:51]} (37. Ke3 $142) 37... Rg6 {[%emt 0:00:05]} (37... a5 $16) 38. Rc1 $1 {[%emt 0:00:39]} Rg8 {[%emt 0:00:47]} 39. Rc5 $1 {[%emt 0:01:14]} Ra8 {[%emt 0:03:58]} 40. Ra5 {[%emt 0:00:43]} Kc6 {[%emt 0:01:46]} 41. Ke3 {[%emt 0:13:33]} Ra7 {[%emt 0:04:24]} (41... Kd6 $142 42. f4 Ra7) 42. Rc5+ {[%emt 0:07:28]} Kd6 {[%emt 0:00:20]} 43. Rc8 $1 {[%emt 0:00:08]} Re7+ {[%emt 0:02:40]} 44. Kd2 {[%emt 0:01:04]} Rf7 {[%emt 0:00:45]} 45. Ke2 {[%emt 0:00:08]} Rb7 {[%emt 0:04:16]} 46. Rh8 {[%emt 0:04:55]} Kc6 {[%emt 0:01:21]} 47. Rxh6+ {[%emt 0:03:17]} Kb5 {[%emt 0:00:05]} 48. Re6 {[%emt 0:00:44]} Rh7 {[%emt 0:05:27]} 49. Kd3 {[%emt 0:00:12]} Rh1 {[%emt 0:00:37]} 50. Re2 {[%emt 0:02:08]} Rg1 {[%emt 0:04:50]} 51. Ke3 {[%emt 0:00:11]} ({Don't do} 51. Re5 Kc6 52. Rxg5 Rxg3 53. Rg6+ Kb5) 51... a5 {[%emt 0:00:53]} 52. Rd2 {[%emt 0:03:27] And now Kf2 would win.} Rxg3 {[%emt 0:09:04]} 53. Kf2 {[%emt 0:00:02] Inhibits Rg1.} Rh3 {[%emt 0:00:04]} 54. Kg2 $1 {[%emt 0:00:07]} Rh8 {[%emt 0:00:09]} 55. f4 {[%emt 0:01:02]} gxf4 {[%emt 0:00:51]} 56. Kf3 {[%emt 0:00:01]} Kc4 {[%emt 0:01:36]} 57. Kxf4 {[%emt 0:00:57]} Rf8+ $2 {[%emt 0:00:11][%mdl 8192]} (57... Rh1 $16 58. g5 Rg1) 58. Ke5 {[%emt 0:01:12]} Re8+ {[%emt 0:00:06]} 59. Kf6 $1 {[%emt 0:01:01]} Rf8+ {[%emt 0:02:27]} 60. Kg7 $1 {[%emt 0:00:39]} Rf1 {[%emt 0:00:37]} 61. g5 {[%emt 0:00:34]} a4 {[%emt 0:00:07]} 62. g6 {[%emt 0:00:13]} a3 {[%emt 0:00:43]} 63. Kh7 {[%emt 0:01:14]} Rh1+ {[%emt 0:01:00]} 64. Kg8 {[%emt 0:00:01] Strongly threatening g7.} Rg1 {[%emt 0:03:02]} 65. g7 $1 {[%emt 0:00:27]} axb2 {[%emt 0:00:15]} 66. Rxb2 {[%emt 0:00:00]} Kc3 {[%emt 0:00:12]} 67. Rf2 {[%emt 0:00:12]} Kxd4 {[%emt 0:00:44]} 68. Kf8 {[%emt 0:00:07]} (68. Kf7 $142 Kc5 69. Rc2+ Kb5 70. g8=Q Rxg8 71. Kxg8 d4 72. Kf7 d3 73. Rc1) 68... Kc3 {[%emt 0:01:25] [#]} 69. g8=Q $2 {[%emt 0:01:32]} (69. Rf3+ $1 {mates} Kc4 70. Rf7 d4 71. Rc7+ Kd5 {[#]} 72. Rc1 $3 {[%mdl 512]} Rxc1 73. g8=Q+ Kc6 74. Qg2+ Kb6 75. Qd5) 69... Rxg8+ $11 {[%emt 0:00:05] The position is equal.} 70. Kxg8 {[%emt 0:00:08]} d4 {[%emt 0:00:08]} 71. Kf7 {[%emt 0:00:20] Threatening mate with Ke6.} d3 {[%emt 0:00:12]} 72. Ke6 {[%emt 0:00:40] Intending Kd5 and mate.} d2 {[%emt 0:01:15]} 73. Rf1 {[%emt 0:00:05]} b3 {[%emt 0:00:16] Weighted Error Value: White=0.13 (very precise) /Black=0.21 (precise)} 1/2-1/2

[Event "Israel-ch Semi-final 2022"]
[Site "Ramat Gan"]
[Date "2022.06.13"]
[Round "6.7"]
[White "Reprun, Nadejda"]
[Black "Sivan, Yaacov"]
[Result "0-1"]
[ECO "B35"]
[WhiteElo "1954"]
[BlackElo "2306"]
[Annotator "TA"]
[PlyCount "82"]
[EventDate "2022.05.09"]
[EventType "swiss"]
[EventCountry "ISR"]
[SourceTitle "playchess.com"]
[Source "ChessBase"]
[SourceQuality "1"]
[TimeControl "40/5400+30:1800+30"]

{[%evp 21,82,24,43,25,25,24,34,25,31,9,12,-33,0,0,-4,0,-4,-9,0,0,0,0,7,-15,-10,-45,-48,-55,-38,-49,-39,-88,-87,-87,-87,-87,-84,-85,-68,-79,29,-32,-30,-181,-159,-662,-598,-1445,-1429,-1384,-1356,-1174,-1163,-1395,-1193,-29985,-29986,-29986,-29987,-29987,-29984,-29986,-29987]} 1. e4 {[%emt 0:00:03]} c5 {[%emt 0:07:15]} 2. Nf3 {[%emt 0:00:05]} Nc6 {[%emt 0:00:29]} 3. d4 {[%emt 0:00:08]} cxd4 {[%emt 0:00:05]} 4. Nxd4 {[%emt 0:00:04]} g6 {[%emt 0:00:04]} 5. Nc3 {[%emt 0:00:15]} Bg7 {[%emt 0:00:07]} 6. Be3 {[%emt 0:00:14]} Nf6 {[%emt 0:00:10]} 7. Bc4 {[%emt 0:00:24]} O-O {[%emt 0:00:46]} 8. Bb3 {[%emt 0:00:22]} Ng4 9. Qxg4 {[%emt 0:09:50]} Nxd4 {[%emt 0:07:25]} 10. Qd1 {[%emt 0:00:44]} Nxb3 11. axb3 {[%emt 0:00:09]} a6 {[%emt 0:09:59]} 12. O-O {[%emt 0:02:24] B35: Sicilian: Accelerated Dragon with 5 Nc3: main line.} d6 {[%emt 0:02:33]} 13. Qd2 {[%emt 0:16:23]} Bd7 {[%emt 0:05:55]} 14. Rad1 {[%emt 0:03:43] White is slightly better.} Bc6 {[%emt 0:03:24] [#]} 15. Nd5 $146 {[%emt 0:01:39]} ({Predecessor:} 15. Bd4 Bxd4 16. Qxd4 Rc8 17. f4 Qa5 18. b4 Qc7 19. f5 f6 20. Rf2 Kg7 21. Ne2 {½-½ (56) Zandonai Ignacio,A (1971)-Santos,L (1888) Goiania 2017}) 15... b5 {[%emt 0:10:35]} 16. c4 {[%emt 0:06:39]} (16. Bh6 {seems wilder.} Bxh6 17. Qxh6 e6 18. Rd3) 16... Rb8 {[%emt 0:10:27]} 17. c5 {[%emt 0:04:32]} dxc5 {[%emt 0:11:49] Hoping for ...e6.} 18. Bxc5 {[%emt 0:00:53]} Bxd5 {[%emt 0:00:21]} 19. exd5 {[%emt 0:00:37]} Qd7 {[%emt 0:05:39]} 20. Rfe1 {[%emt 0:02:49]} Rfe8 {[%emt 0:00:08]} 21. h3 {[%emt 0:02:26]} Qb7 {[%emt 0:02:14]} 22. Qf4 {[%emt 0:09:22][%cal Oc5e7]} Rbd8 {[%emt 0:01:44]} 23. Qf3 {[%emt 0:15:27]} Bxb2 {[%emt 0:02:11]} 24. Re2 {[%emt 0:00:56]} Bg7 {[%emt 0:02:56]} 25. b4 {[%emt 0:02:44]} e6 {[%emt 0:03:25][%cal Re6d5]} 26. Red2 {[%emt 0:02:00]} (26. d6 $15 Qxf3 27. gxf3) 26... exd5 {[%emt 0:00:54]} 27. Rxd5 {[%emt 0:00:10]} Rxd5 {[%emt 0:00:13]} 28. Rxd5 {[%emt 0:00:49][%cal Od5d8] [#] Rd8! is the strong threat.} Qc7 {[%emt 0:01:50][%cal Re8e1] Prevents Rd8.} 29. g3 {[%emt 0:01:42]} h5 {[%emt 0:00:26]} 30. Rd6 {[%emt 0:01:04]} a5 {[%emt 0:03:51]} (30... Bf8 $17 31. Rc6 Qd7) 31. Qd5 {[%emt 0:01:06]} (31. Ra6 $11 Qe5 32. Ra7) 31... Re5 $15 {[%emt 0:01:16]} 32. Qa8+ {[%emt 0:05:13]} (32. Rd8+ $11 {and White is okay.} Kh7 33. Rd7 Rxd5 34. Rxc7) 32... Kh7 $19 {[%emt 0:00:05]} 33. Rc6 $2 {[%emt 0:01:11] White does not recover from this.} (33. Qc6 $17 Qxc6 34. Rxc6) 33... Qd7 {[%emt 0:02:27]} 34. Kh2 {[%emt 0:01:44]} axb4 {[%emt 0:00:30][%cal Ba5b4,Bb4b3,Bb3b2][%mdl 32]} 35. Rd6 {[%emt 0:01:37]} Qf5 {[%emt 0:00:24]} 36. Bd4 {[%emt 0:00:38]} Re2 {[%emt 0:00:32] [#] ( -> ...Bxd4)} 37. Be3 {[%emt 0:01:44]} b3 {[%emt 0:01:28] And now ...b2 would win.} 38. Rd5 {[%emt 0:00:42]} Rxf2+ {[%emt 0:00:37] Black mates.} 39. Bxf2 {[%emt 0:00:30]} Qxf2+ {[%emt 0:00:06]} 40. Kh1 {[%emt 0:00:05]} Qf3+ {[%emt 0:00:22]} 41. Kh2 {[%emt 0:30:06]} b2 {[%emt 0:30:46] Weighted Error Value: White=0.90/Black=0.11 (very precise)} 0-1

[Event "Israel-ch Semi-final 2022"]
[Site "Ramat Gan"]
[Date "2022.06.13"]
[Round "6.8"]
[White "Poleg, Matan"]
[Black "Vaisman, Felix"]
[Result "1-0"]
[ECO "E13"]
[WhiteElo "2225"]
[BlackElo "2096"]
[Annotator "RC"]
[PlyCount "83"]
[EventDate "2022.05.09"]
[EventType "swiss"]
[EventCountry "ISR"]
[SourceTitle "playchess.com"]
[Source "ChessBase"]
[SourceQuality "1"]
[TimeControl "40/5400+30:1800+30"]

1. d4 {[%emt 0:00:03]} Nf6 {[%emt 0:37:03]} 2. c4 {[%emt 0:00:45]} c5 {[%emt 0:00:10]} 3. e3 {[%emt 0:00:47]} e6 {[%emt 0:00:30]} 4. Nf3 {[%emt 0:00:29]} b6 {[%emt 0:00:29]} 5. Nc3 {[%emt 0:00:31]} cxd4 {[%emt 0:00:46]} 6. exd4 {[%emt 0:00:09]} Bb4 {[%emt 0:00:29]} 7. Bd3 {[%emt 0:02:24]} Bxc3+ {[%emt 0:06:55]} 8. bxc3 {[%emt 0:02:32]} O-O {[%emt 0:04:02]} 9. O-O {[%emt 0:00:33]} Bb7 {[%emt 0:00:49]} 10. Bg5 {[%emt 0:02:18]} h6 {[%emt 0:04:55]} 11. Bh4 {[%emt 0:00:02]} d6 {[%emt 0:00:21]} 12. Re1 {[%emt 0:02:34]} Nbd7 {[%emt 0:00:36]} 13. Nd2 {[%emt 0:05:47]} Qc8 {[%emt 0:05:09]} 14. Rc1 {[%emt 0:01:29]} Re8 {[%emt 0:06:05]} 15. f3 {[%emt 0:03:10]} d5 {[%emt 0:08:17]} 16. cxd5 {[%emt 0:00:17]} exd5 {[%emt 0:00:22]} 17. Nf1 {[%emt 0:02:53]} Ba6 {[%emt 0:02:08]} 18. Rxe8+ {[%emt 0:01:28]} Nxe8 {[%emt 0:00:04]} 19. Bb1 {[%emt 0:00:30]} Nef6 {[%emt 0:04:17]} 20. Ne3 {[%emt 0:01:10]} Qe8 {[%emt 0:01:47]} 21. Qd2 {[%emt 0:01:24]} Rc8 {[%emt 0:02:10]} 22. Nf5 {[%emt 0:00:31]} Qf8 {[%emt 0:01:26]} 23. Bg3 {[%emt 0:04:53]} Rc6 {[%emt 0:02:23]} 24. Ne3 {[%emt 0:07:45]} Qa3 {[%emt 0:01:13]} 25. Be1 {[%emt 0:00:55]} Re6 {[%emt 0:03:46]} 26. g4 {[%emt 0:00:27]} Qe7 {[%emt 0:02:03]} 27. Bf2 {[%emt 0:00:03]} Nf8 {[%emt 0:00:59]} 28. Re1 {[%emt 0:01:07]} Ng6 {[%emt 0:00:59]} 29. Bf5 {[%emt 0:00:25]} Nf4 {[%emt 0:03:36]} 30. Bg3 {[%emt 0:00:32]} Ne2+ {[%emt 0:00:51]} 31. Rxe2 {[%emt 0:00:07]} Bxe2 {[%emt 0:00:04]} 32. Bxe6 {[%emt 0:00:06]} Bxf3 {[%emt 0:00:03]} 33. Bf5 {[%emt 0:00:33]} g6 {[%emt 0:01:25]} 34. Qf2 {[%emt 0:01:38]} Be4 {[%emt 0:00:03]} 35. Bxe4 {[%emt 0:00:14]} Nxe4 {[%emt 0:00:03]} 36. Qf3 {[%emt 0:03:20]} Ng5 {[%emt 0:00:57]} 37. Qe2 {[%emt 0:00:57]} Qe4 {[%emt 0:01:09]} 38. h4 {[%emt 0:00:01]} Ne6 {[%emt 0:00:25]} 39. Kf2 {[%emt 0:00:45]} f5 {[%emt 0:00:20]} 40. gxf5 {[%emt 0:00:23]} gxf5 {[%emt 0:00:08]} 41. Ng2 {[%emt 0:30:53]} f4 {[%emt 0:02:40]} 42. Nxf4 {[%emt 0:00:00]} 1-0